[Event "14th Danzhou Super GM 2023"]
[Site "Danzhou"]
[Date "2023.11.20"]
[Round "7.1"]
[White "Tan, Zhongyi"]
[Black "Bu, Xiangzhi"]
[Result "0-1"]
[ECO "E12"]
[WhiteElo "2513"]
[BlackElo "2677"]
[Annotator "RC"]
[PlyCount "74"]
[EventDate "2023.11.17"]
[EventCountry "CHN"]
[SourceTitle "playchess.com"]
[Source "ChessBase"]
[SourceQuality "1"]
[TimeControl "2700+10"]

1. d4 {[%emt 0:00:04]} Nf6 {[%emt 0:00:03]} 2. c4 {[%emt 0:00:02]} e6 {[%emt 0:00:02]} 3. Nf3 {[%emt 0:00:02]} b6 {[%emt 0:00:02]} 4. a3 {[%emt 0:00:17]} Bb7 {[%emt 0:00:02]} 5. Nc3 {[%emt 0:00:01]} d5 {[%emt 0:00:03]} 6. cxd5 {[%emt 0:00:12]} Nxd5 {[%emt 0:00:04]} 7. Qc2 {[%emt 0:00:04]} Be7 {[%emt 0:00:27]} 8. e4 {[%emt 0:00:03]} Nxc3 {[%emt 0:00:03]} 9. bxc3 {[%emt 0:00:02]} O-O {[%emt 0:00:06]} 10. Bd3 {[%emt 0:00:09]} c5 {[%emt 0:00:14]} 11. O-O {[%emt 0:00:15]} Nd7 {[%emt 0:00:23]} 12. e5 {[%emt 0:02:24]} Bxf3 {[%emt 0:03:43]} 13. gxf3 {[%emt 0:00:03]} g6 {[%emt 0:00:01]} 14. Qe2 {[%emt 0:01:30]} Rc8 {[%emt 0:00:23]} 15. Rd1 {[%emt 0:00:28]} cxd4 {[%emt 0:04:36]} 16. cxd4 {[%emt 0:00:03]} b5 {[%emt 0:00:04]} 17. d5 {[%emt 0:07:34]} Nxe5 {[%emt 0:19:42]} 18. Bxb5 {[%emt 0:06:02]} Bg5 {[%emt 0:01:22]} 19. Bb2 {[%emt 0:05:17]} Bf4 {[%emt 0:00:51]} 20. Rd4 {[%emt 0:00:09]} Bc1 {[%emt 0:04:20]} 21. Bxc1 {[%emt 0:06:18]} Rxc1+ {[%emt 0:00:02]} 22. Rxc1 {[%emt 0:00:01]} Qg5+ {[%emt 0:00:01]} 23. Kh1 {[%emt 0:00:04]} Qxc1+ {[%emt 0:00:03]} 24. Kg2 {[%emt 0:02:05]} Qg5+ {[%emt 0:03:29]} 25. Kh1 {[%emt 0:00:02]} Qf6 {[%emt 0:01:44]} 26. f4 {[%emt 0:08:23]} Nc6 {[%emt 0:00:09]} 27. Rd1 {[%emt 0:01:38]} Nd4 {[%emt 0:01:19]} 28. Qd3 {[%emt 0:00:38]} Nxb5 {[%emt 0:00:02]} 29. Qxb5 {[%emt 0:00:10]} Qxf4 {[%emt 0:00:03]} 30. Qe2 {[%emt 0:00:21]} exd5 {[%emt 0:00:01]} 31. Rxd5 {[%emt 0:00:04]} Qc1+ {[%emt 0:00:03]} 32. Kg2 {[%emt 0:00:40]} Qxa3 {[%emt 0:00:02]} 33. Qe5 {[%emt 0:01:01]} Qa4 {[%emt 0:00:02]} 34. Ra5 {[%emt 0:00:28]} Qc6+ {[%emt 0:00:30]} 35. Kg3 {[%emt 0:00:11]} Re8 {[%emt 0:00:06]} 36. Qa1 {[%emt 0:00:22]} Rd8 {[%emt 0:01:07]} 37. Qa3 {[%emt 0:01:13]} Qe4 {[%emt 0:00:17]} 0-1

[Event "14th Danzhou Super GM 2023"]
[Site "Danzhou"]
[Date "2023.11.20"]
[Round "7.2"]
[White "Cheparinov, Ivan"]
[Black "Ma, Qun"]
[Result "1/2-1/2"]
[ECO "C54"]
[WhiteElo "2649"]
[BlackElo "2653"]
[Annotator "TA"]
[PlyCount "92"]
[EventDate "2023.11.17"]
[EventCountry "CHN"]
[SourceTitle "playchess.com"]
[Source "ChessBase"]
[SourceQuality "1"]
[TimeControl "2700+10"]

{[%evp 13,92,18,33,0,14,12,15,0,0,0,12,-30,0,0,0,0,0,-6,0,0,-54,-100,-100,-100,0,0,85,89,321,209,228,207,197,85,110,43,104,49,126,47,5,31,27,20,120,0,0,0,0,0,0,0,0,0,0,0,0,0,0,0,0,0,0,0,0,0,0,0,0,0,0,0,0,0,16,0,0,0,0,0,9]} 1. e4 {[%emt 0:00:03]} e5 {[%emt 0:00:10]} 2. Nf3 {[%emt 0:00:03]} Nc6 {[%emt 0:00:03]} 3. Bc4 {[%emt 0:00:03]} Bc5 {[%emt 0:00:06]} 4. c3 {[%emt 0:00:03]} Nf6 {[%emt 0:00:04]} 5. d3 {[%emt 0:00:03]} d6 {[%emt 0:00:04]} 6. Bg5 {[%emt 0:00:10]} h6 {[%emt 0:00:06]} 7. Bh4 {[%emt 0:00:02]} a6 {[%emt 0:00:08]} 8. Nbd2 {[%emt 0:00:22] C54: Giuoco Piano: 4 c3 Nf6, main lines with 5 d4 and 5 d3.} Ba7 {[%emt 0:00:06]} 9. O-O {[%emt 0:00:16]} Qe7 $1 {[%emt 0:00:55][%mdl 4] outshines the older 9...g5.} 10. b4 {[%emt 0:00:02]} g5 {[%emt 0:00:04]} 11. Bg3 {[%emt 0:00:01]} Nh7 {[%emt 0:00:52][%cal Bf6h7,Bh7f8,Bf8g6][%mdl 32]} 12. Bd5 {[%emt 0:00:08]} Nf8 {[%emt 0:01:39]} (12... h5 $5 {[%cal Rh5h4]} 13. h4 g4 $11) 13. Nc4 {[%emt 0:00:03] [#]} h5 $146 {[%emt 0:02:21]} ({Predecessor:} 13... Ng6 14. Ne3 Qd8 15. h3 h5 16. Qb3 O-O 17. a4 g4 18. hxg4 hxg4 19. Nh2 Qg5 {½-½ Caruana,F (2786)-Deac,B (2701) FIDE Grand Swiss 2023 (9)}) 14. h4 {[%emt 0:12:54]} g4 {[%emt 0:00:32]} 15. Nfd2 {[%emt 0:00:21]} Ng6 {[%emt 0:00:47]} 16. a4 {[%emt 0:00:45]} (16. Bxc6+ $11 bxc6 17. Qa4) 16... Nd8 $15 {[%emt 0:02:07] White must now prevent ...c6.} 17. b5 {[%emt 0:04:00]} (17. d4 $1 $15) 17... c6 $1 $17 {[%emt 0:07:05]} 18. b6 {[%emt 0:00:01]} (18. bxc6 $2 bxc6 19. Bxc6+ Nxc6 $19) 18... cxd5 {[%emt 0:00:25]} (18... Bb8 $1 $17 19. Ne3 Nxh4) 19. Ne3 $36 {[%emt 0:00:43][%mdl 2048] White has some pressure.} Be6 {[%emt 0:04:24]} 20. bxa7 $16 {[%emt 0:00:03] White is more active.} Rxa7 $2 {[%emt 0:06:33]} (20... dxe4 $16 {keeps fighting.} 21. dxe4 Qc7) 21. Nxd5 {[%emt 0:06:41]} Bxd5 {[%emt 0:00:18]} 22. exd5 {[%emt 0:00:02]} f5 {[%emt 0:00:17] [#]} 23. f4 {[%emt 0:00:23]} (23. f3 $1 $18 {[%cal Rf3g4]}) 23... O-O {[%emt 0:00:49]} 24. Qb3 {[%emt 0:02:30]} ({White should try} 24. fxe5 $16 dxe5 25. Bf2) 24... Nf7 {[%emt 0:04:59]} (24... Nxh4 $2 25. Bxh4 (25. fxe5 Ng6 $18) 25... Qxh4 26. Qb6 $18) (24... Nxf4 $1 $14 25. Bxf4 exf4) 25. Rae1 {[%emt 0:03:20]} (25. Qb6 $16 Raa8 26. Rae1) 25... Raa8 {[%emt 0:02:25]} (25... b5 $1 $14) 26. Nc4 {[%emt 0:03:44]} (26. d4 $16) 26... b5 $1 $14 {[%emt 0:05:39][%mdl 64] Deflection} 27. axb5 {[%emt 0:00:46]} axb5 {[%emt 0:00:01]} 28. Qxb5 {[%emt 0:00:50]} Ra2 {[%emt 0:04:57] [#]} (28... Rfb8 $11 29. Qc6 Qa7+ 30. Bf2 Qe7) 29. fxe5 {[%emt 0:07:49]} (29. Qb6 $1 $16) 29... f4 $11 {[%emt 0:00:01] The position is equal.} 30. exd6 {[%emt 0:01:23]} (30. Bxf4 $2 {loses.} Qxh4 31. Qb1 (31. Nxd6 {leads to mate.} g3 32. Bxg3 Qxg3) (31. e6 Nxf4 32. exf7+ Kh7 33. Rxf4 Qxe1+ 34. Rf1 Qe2) 31... Nxf4 32. Rxf4 (32. Qxa2 $2 Ne2+ 33. Qxe2 g3 $19) 32... dxe5 33. Nxe5 Rb2 $19) 30... Qa7+ {[%emt 0:00:02]} 31. Bf2 {[%emt 0:01:08]} Rxf2 {[%emt 0:00:07][%mdl 64] Remove Defender} 32. Rxf2 {[%emt 0:00:00]} g3 $1 {[%emt 0:00:02][%mdl 64] Pin} 33. Qb6 {[%emt 0:00:13]} Qxb6 {[%emt 0:01:05]} 34. Nxb6 {[%emt 0:00:01]} gxf2+ {[%emt 0:00:01]} 35. Kxf2 {[%emt 0:00:01]} Nge5 {[%emt 0:00:01]} 36. Kf1 {[%emt 0:00:41] aiming for d4.} Nxd3 {[%emt 0:01:07]} 37. Re6 {[%emt 0:00:09]} Rb8 {[%emt 0:00:35]} 38. d7 {[%emt 0:00:19]} Kg7 $1 {[%emt 0:00:21]} 39. Rc6 {[%emt 0:01:11]} Nde5 {[%emt 0:00:10][%cal Ob8b7]} 40. c4 {[%emt 0:00:15][%cal Oc4c5]} Nd8 {[%emt 0:00:11][%mdl 64] Deflection} (40... Nxc6 $2 41. dxc6 Ne5 42. c7 Nxd7 43. cxb8=R (43. c8=N $2 Nxb6 44. Nd6 Nd7 $19) 43... Nxb8 44. Nd5 $18) 41. Rc8 {[%emt 0:00:10]} Rxb6 {[%emt 0:00:10]} 42. Rxd8 {[%emt 0:00:01][%cal Od8g8] Rg8+! would be deadly.} Rd6 {[%emt 0:00:01]} (42... Nxc4 43. Rg8+ Kxg8 44. d8=Q+ (44. d8=B $2 {too greedy.} Rb2 $19) 44... Kg7 45. Qc7+ Kf6 46. Qxf4+ Ke7 47. Qxc4 $18) 43. c5 {[%emt 0:00:23]} Rxd5 {[%emt 0:00:18] [#]} 44. c6 {[%emt 0:00:01]} Nxc6 {[%emt 0:00:05]} (44... Rd1+ 45. Ke2) 45. Rc8 {[%emt 0:00:01]} Rxd7 {[%emt 0:00:08] Strongly threatening ...Ne5.} 46. Rxc6 {[%emt 0:00:02]} f3 {[%emt 0:00:08] An interesting game.   Weighted Error Value: White=0.20 (precise) /Black=0.19 (very precise)} 1/2-1/2

[Event "14th Danzhou Super GM 2023"]
[Site "Danzhou"]
[Date "2023.11.20"]
[Round "7.3"]
[White "Liu, Yan"]
[Black "Bai, Jinshi"]
[Result "1/2-1/2"]
[ECO "A34"]
[WhiteElo "2579"]
[BlackElo "2585"]
[Annotator "RC"]
[PlyCount "66"]
[EventDate "2023.11.17"]
[EventCountry "CHN"]
[SourceTitle "playchess.com"]
[Source "ChessBase"]
[SourceQuality "1"]
[TimeControl "2700+10"]

1. Nf3 {[%emt 0:00:06]} Nf6 {[%emt 0:00:03]} 2. c4 {[%emt 0:00:04]} c5 {[%emt 0:00:05]} 3. g3 {[%emt 0:00:34]} Nc6 {[%emt 0:00:16]} 4. Bg2 {[%emt 0:00:38]} d5 {[%emt 0:00:20]} 5. cxd5 {[%emt 0:00:05]} Nxd5 {[%emt 0:00:02]} 6. Nc3 {[%emt 0:00:05]} g6 {[%emt 0:00:08]} 7. h4 {[%emt 0:00:18]} Bg7 {[%emt 0:00:04]} 8. h5 {[%emt 0:00:28]} Bf5 {[%emt 0:00:05]} 9. Nh4 {[%emt 0:09:10]} Be6 {[%emt 0:07:45]} 10. Ne4 {[%emt 0:00:16]} Ndb4 {[%emt 0:03:40]} 11. Nxc5 {[%emt 0:05:54]} Bd5 {[%emt 0:00:02]} 12. a3 {[%emt 0:03:41]} Bxg2 {[%emt 0:00:49]} 13. Nxg2 {[%emt 0:00:03]} Qd5 {[%emt 0:00:04]} 14. Kf1 {[%emt 0:03:03]} Qxc5 {[%emt 0:02:14]} 15. axb4 {[%emt 0:00:03]} Nxb4 {[%emt 0:00:02]} 16. d3 {[%emt 0:00:39]} O-O {[%emt 0:05:44]} 17. hxg6 {[%emt 0:01:19]} hxg6 {[%emt 0:00:06]} 18. Bh6 {[%emt 0:01:53]} Bxh6 {[%emt 0:01:51]} 19. Rxh6 {[%emt 0:00:03]} Kg7 {[%emt 0:00:02]} 20. Rh4 {[%emt 0:01:39]} Rh8 {[%emt 0:00:22]} 21. Qc1 {[%emt 0:04:50]} Rac8 {[%emt 0:04:07]} 22. Qxc5 {[%emt 0:01:27]} Rxc5 {[%emt 0:00:03]} 23. Rxh8 {[%emt 0:00:18]} Kxh8 {[%emt 0:00:01]} 24. Ne3 {[%emt 0:00:11]} a6 {[%emt 0:02:11]} 25. Ke1 {[%emt 0:00:54]} Nc2+ {[%emt 0:01:12]} 26. Nxc2 {[%emt 0:00:03]} Rxc2 {[%emt 0:00:01]} 27. Rb1 {[%emt 0:00:11]} Kg7 {[%emt 0:02:01]} 28. Kd1 {[%emt 0:00:03]} Rc6 {[%emt 0:01:38]} 29. Kd2 {[%emt 0:00:06]} Kf6 {[%emt 0:00:37]} 30. Rh1 {[%emt 0:00:34]} Rb6 {[%emt 0:00:55]} 31. Kc3 {[%emt 0:00:02]} Rc6+ {[%emt 0:00:01]} 32. Kd2 {[%emt 0:00:03]} Rb6 {[%emt 0:00:05]} 33. Kc3 {[%emt 0:00:02]} Rc6+ {[%emt 0:00:01]} 1/2-1/2

[Event "14th Danzhou Super GM 2023"]
[Site "Danzhou"]
[Date "2023.11.20"]
[Round "7.4"]
[White "Jumabayev, Rinat"]
[Black "Xu, Xiangyu"]
[Result "1/2-1/2"]
[ECO "A16"]
[WhiteElo "2588"]
[BlackElo "2623"]
[Annotator "TA"]
[PlyCount "89"]
[EventDate "2023.11.17"]
[EventCountry "CHN"]
[SourceTitle "playchess.com"]
[Source "ChessBase"]
[SourceQuality "1"]
[TimeControl "2700+10"]

{[%evp 9,89,20,27,18,21,29,40,28,43,42,36,32,39,39,40,33,33,32,35,27,39,32,43,35,38,27,27,27,37,16,17,25,33,33,28,21,41,18,103,95,114,92,157,148,141,7,138,40,132,64,64,64,64,65,65,65,65,0,0,0,8,0,0,0,0,0,0,0,4,9,37,37,18,19,17,2,3,0,238,0,20,0]} 1. Nf3 {[%emt 0:00:06]} Nf6 {[%emt 0:00:10]} 2. c4 {[%emt 0:00:16]} g6 {[%emt 0:00:08]} 3. Nc3 {[%emt 0:00:35]} d5 {[%emt 0:00:03]} 4. cxd5 {[%emt 0:00:03]} Nxd5 {[%emt 0:00:03]} 5. h4 {[%emt 0:00:06]} Bg7 {[%emt 0:00:05]} 6. e4 {[%emt 0:00:02] A16: English Opening: 1...Nf6 with ...d5.} Nxc3 {[%emt 0:00:05]} 7. dxc3 {[%emt 0:00:05]} Qxd1+ {[%emt 0:00:10]} 8. Kxd1 {[%emt 0:00:02] White is slightly better.} f5 {[%emt 0:00:05]} 9. Bd3 {[%emt 0:03:12]} fxe4 {[%emt 0:00:02]} 10. Bxe4 {[%emt 0:00:01]} Nd7 {[%emt 0:00:03] [#]} 11. Bc2 $146 {[%emt 0:01:08]} ({Predecessor:} 11. Bf4 e5 12. Be3 Nf6 13. Nd2 Nxe4 14. Nxe4 Bf5 15. f3 h5 16. Ke2 Bxe4 17. fxe4 {½-½ Daneshvar,B (2419)-Paravyan,D (2609) Wch Rapid Almaty 2022 (12)}) 11... Ne5 {[%emt 0:01:28]} 12. Nxe5 {[%emt 0:03:54]} Bxe5 {[%emt 0:00:03]} 13. Be4 {[%emt 0:01:57]} c6 {[%emt 0:09:23]} 14. Bg5 {[%emt 0:01:27]} Kf7 {[%emt 0:01:22]} 15. Kc2 {[%emt 0:04:18]} Bf6 {[%emt 0:01:13]} 16. Rae1 {[%emt 0:01:02]} Bf5 {[%emt 0:05:24]} 17. Re2 {[%emt 0:04:14]} Rad8 {[%emt 0:10:23]} 18. Rhe1 {[%emt 0:02:43] And now Bxf5 would win.} Rd7 {[%emt 0:00:26]} 19. f3 {[%emt 0:05:42]} Rhd8 {[%emt 0:09:12]} 20. a4 {[%emt 0:06:04]} h5 {[%emt 0:01:19]} 21. Bxf5 {[%emt 0:01:46]} gxf5 {[%emt 0:00:07]} 22. a5 {[%emt 0:03:33]} Rg8 {[%emt 0:01:12]} 23. f4 {[%emt 0:00:09]} a6 {[%emt 0:00:50]} (23... Rgd8 $11 {keeps the balance.}) 24. Kb3 $1 $16 {[%emt 0:00:42]} Rgd8 {[%emt 0:00:43]} 25. Kc4 $1 {[%emt 0:00:07]} Rc8 {[%emt 0:00:58]} (25... Rc7 $142) 26. Re3 {[%emt 0:00:16]} Rcc7 {[%emt 0:01:31]} 27. R1e2 {[%emt 0:01:05] Prevents Rd2.} (27. Bxf6 $16 exf6 28. b4) 27... Bg7 {[%emt 0:00:12] [#]} (27... Rd5 $1 $11) 28. Re6 {[%emt 0:00:46]} (28. Kc5 $1 $16) 28... Bf8 {[%emt 0:00:30] [#]} (28... c5 $1 $14) 29. R6e5 {[%emt 0:00:49] White is much more active.} (29. Bh6 $1 $16 {[%cal Rh6f8]}) 29... Rd5 $14 {[%emt 0:00:02][%mdl 64] Decoy} 30. Rxd5 {[%emt 0:00:54]} cxd5+ {[%emt 0:00:02]} 31. Kxd5 {[%emt 0:00:01][%mdl 4096] Endgame KRB-KRB} e6+ {[%emt 0:02:01]} 32. Kd4 $1 {[%emt 0:00:02]} Rc5 {[%emt 0:00:46]} 33. b4 {[%emt 0:02:06]} (33. Re5 $1 $14 Rc8 34. Kd3) 33... Rc7 $11 {[%emt 0:00:01] Hoping for ...Bg7+.} 34. Kd3 {[%emt 0:00:04]} Bg7 {[%emt 0:00:02]} 35. c4 {[%emt 0:00:12]} Rd7+ {[%emt 0:00:07]} 36. Kc2 {[%emt 0:00:22]} Rd4 {[%emt 0:00:06]} 37. Kb3 {[%emt 0:00:01]} Rd3+ {[%emt 0:00:10]} 38. Ka4 {[%emt 0:00:01]} Bd4 {[%emt 0:00:16]} 39. Bd8 {[%emt 0:01:05]} Be3 {[%emt 0:00:03] ...Bc1 is the strong threat.} 40. Bc7 {[%emt 0:00:10]} Ke7 {[%emt 0:00:10]} 41. Be5 {[%emt 0:00:17]} Kd7 {[%emt 0:00:02]} 42. Rc2 {[%emt 0:00:23]} Bg1 {[%emt 0:00:42]} 43. Re2 {[%emt 0:00:08]} Ba7 $2 {[%emt 0:00:21]} (43... Be3 $11) 44. Rc2 $2 {[%emt 0:00:12]} ({White must play} 44. c5 $18) 44... Bg1 {[%emt 0:00:04]} 45. Re2 {[%emt 0:00:12] Weighted Error Value: White=0.28 (precise) /Black=0.26 (precise)} 1/2-1/2